fUST/lending_fUST_20250118
["ID","MTS","AMOUNT","RATE_DAILY","PERIOD"]
[349448443,1737187840035,-7323.73451557,0.00023556,2]
[349448445,1737187840045,-453.69682625,0.0002359,3]
[349448447,1737187840054,-153.44,0.000236,31]
[349448449,1737187840064,-153.44,0.000236,31]
[349448451,1737187840073,-153.44,0.000236,31]
[349448453,1737187840083,-153.44,0.000236,31]
[349448455,1737187840092,-153.44,0.000236,31]
[349448457,1737187840101,-153.44,0.000236,31]
[349448459,1737187840111,-153.44,0.000236,31]
[349448461,1737187840120,-153.44,0.000236,31]
[349448463,1737187840130,-453.69682625,0.00023624,3]
[349448466,1737187840139,-202.44271517,0.00023641,3]
[349448469,1737187840150,-664.59,0.00023642,3]
[349448470,1737187840161,-823.24,0.00023642,3]
[349448471,1737187840171,-151.0,0.00023642,7]
[349448472,1737187840180,-859.78,0.00023642,3]
[349448473,1737187840191,-1281.101982,0.00023642,7]
[349448474,1737187840200,-1281.101982,0.00023642,7]
[349448475,1737187840210,-1041.16,0.00023642,3]
[349448476,1737187840220,-151.0,0.00023642,7]
[349448477,1737187840231,-184.262862,0.00023642,7]
[349448478,1737187840242,-184.262862,0.00023642,7]
[349448479,1737187840252,-151.0,0.00023642,7]
[349448480,1737187840261,-151.0,0.00023642,7]
[349448481,1737187840271,-2878.69,0.00023642,3]
[349448482,1737187840282,-151.0,0.00023643,7]
[349448483,1737187840292,-151.0,0.00023643,7]
[349448484,1737187840301,-151.0,0.00023643,7]
[349448485,1737187840310,-8813.08925484,0.0002365,14]
[349448486,1737187840319,-151.0,0.0002365,7]
[349448487,1737187840328,-151.0,0.0002365,7]
[349448488,1737187840338,-453.69682625,0.00023659,3]
[349448489,1737187840347,-256.0,0.0002367,11]
[349448490,1737187840357,-453.69682625,0.00023693,3]
[349448491,1737187840367,-249.8,0.00023713,2]
[349448492,1737187840376,-160.0,0.00023715,5]
[349448493,1737187840385,-453.69682625,0.00023728,3]
[349448494,1737187840394,-453.69682625,0.00023762,3]
[349448495,1737187840404,-3000.0,0.00023776,2]
[349448496,1737187840413,-194.566518,0.00023776,7]
[349448497,1737187840423,-151.0,0.00023776,7]
[349448498,1737187840432,-151.0,0.00023776,7]
[349448499,1737187840442,-208.987624,0.00023776,7]
[349448500,1737187840451,-1281.101982,0.00023776,7]
[349448501,1737187840460,-1281.101982,0.00023776,7]
[349448502,1737187840469,-420.66541768,0.00023776,2]
[349448503,1737187840479,-207.855228,0.00023776,7]
[349448504,1737187840488,-184.262862,0.00023776,7]
[349448505,1737187840497,-184.262862,0.00023776,7]
[349448506,1737187840506,-46978.98163146,0.00023776,2]
[349448507,1737187840515,-151.0,0.00023776,7]
[349448508,1737187840524,-151.0,0.00023776,7]
[349448509,1737187840535,-664.59,0.00023779,3]
[349448510,1737187840544,-823.24,0.00023779,3]
[349448511,1737187840553,-859.78,0.00023779,3]
[349448512,1737187840564,-1041.16,0.00023779,3]
[349448513,1737187840573,-2878.69,0.00023779,3]
[349448514,1737187840583,-453.69682625,0.00023797,3]
[349448515,1737187840592,-2000.0,0.000238,2]
[349448516,1737187840602,-2000.0,0.000238,2]
[349448517,1737187840611,-1771.96,0.000238,14]
[349448518,1737187840620,-151.0,0.000238,10]
[349448519,1737187840630,-151.0,0.000238,10]
[349448520,1737187840639,-151.0,0.000238,9]
[349448521,1737187840649,-500.71416595,0.00023818,9]
[349448522,1737187840658,-500.0,0.00023819,9]
[349448523,1737187840667,-151.0,0.00023829,15]
[349448524,1737187840677,-453.69682625,0.00023831,3]
[349448525,1737187840686,-500.0,0.0002385,2]
[349448526,1737187840696,-500.0,0.0002385,14]
[349448527,1737187840705,-500.0,0.0002385,14]
[349448528,1737187840714,-150.43447722,0.0002385,14]
[349448529,1737187840726,-500.0,0.0002385,2]
[349448530,1737187840736,-453.69682625,0.00023866,3]
[349448531,1737187840746,-500.0,0.00023873,2]
[349448532,1737187840757,-500.0,0.00023873,2]
[349448533,1737187840769,-520.43366398,0.00023873,2]
[349448534,1737187840780,-317.19429902,0.00023873,2]
[349448535,1737187840794,-895455.62003359,0.00023876,61]
[349448536,1737187840871,-571.9537948,0.00023876,61]
[349448537,1737187840947,-500.0,0.00021997,3]
[349448538,1737187840957,-500.0,0.00021998,3]
[349448539,1737187840967,-188.0,0.00021998,2]
[349448540,1737187840976,-449.49999998,0.00023876,61]
[349448541,1737187840987,-434.81370448,0.00023876,61]
[349448542,1737187840999,-20456.86704939,0.00023876,61]
[349448546,1737187842896,-460.6049922,0.00021998,3]
[349448547,1737187842907,-39.3950078,0.00021998,3]
[349448548,1737187842917,-500.0,0.00022271,3]
[349448549,1737187842926,-500.0,0.00022545,3]
[349448550,1737187842936,-500.0,0.00022956,3]
[349448551,1737187842945,-500.0,0.0002323,3]
[349448552,1737187842954,-500.0,0.00023449,3]
[349448553,1737187842962,-500.0,0.00023449,3]
[349448554,1737187842970,-500.0,0.00023449,3]
[349448555,1737187842978,-500.0,0.00023449,3]
[349448556,1737187842986,-500.0,0.00023449,3]
[349448557,1737187842995,-500.0,0.00023449,3]
[349448558,1737187843004,-500.0,0.00023449,3]
[349448560,1737187843013,-500.0,0.00023449,3]
[349448561,1737187843022,-500.0,0.00023498,3]
[349448563,1737187843032,-500.0,0.00023499,3]
[349448565,1737187843043,-500.0,0.00023499,3]
[349448567,1737187843052,-500.0,0.00023499,3]
[349448569,1737187843061,-463.84329801,0.00023499,3]
[349448571,1737187843071,-4026.96766956,0.00023876,61]
[349448573,1737187843082,-12443.99999803,0.00023876,61]
[349448850,1737187845846,-500.0,0.00021997,3]
[349448852,1737187845856,-321.90149206,0.00022134,3]
[349448854,1737187845865,-160.0,0.00022152,2]
[349448856,1737187845875,-151.0,0.0002345,7]
[349448858,1737187845885,-151.0,0.00023499,2]
[349448860,1737187845895,-151.0,0.000235,7]
[349448862,1737187845904,-151.0,0.000235,7]
[349448864,1737187845914,-151.0,0.0002365,7]
[349448866,1737187845923,-151.0,0.00023776,7]
[349448868,1737187845932,-153.0,0.00023863,2]
[349448870,1737187845941,-154.0592362,0.00023863,2]
[349448872,1737187845950,-153.0,0.00023863,2]
[349448874,1737187845959,-154.0592362,0.00023863,2]
[349448876,1737187845968,-153.0,0.00023863,2]
[349448878,1737187845979,-215.0923738,0.00023863,2]
[349448880,1737187845988,-154.0592362,0.00023863,2]
[349448882,1737187845997,-152.0,0.00023871,2]
[349448885,1737187846006,-151.02,0.00023873,2]
[349448887,1737187846016,-151.02,0.00023873,2]
[349448889,1737187846026,-151.02,0.00023873,2]
[349448891,1737187846035,-151.02,0.00023873,2]
[349448893,1737187846047,-151.04862254,0.00023873,2]
[349448895,1737187846056,-5842.9206429,0.00023876,61]
[349448897,1737187846068,-2592.6592295,0.00023876,61]
[349449113,1737188724118,160.563219,0.00013973,2]
[349449180,1737188995332,434.9537,0.00025,120]
[349449216,1737189035705,-243.69363003,0.000189,2]
[349449218,1737189035715,-473.97374319,0.0001972,2]
[349449220,1737189035724,-166.130316,0.00019844,2]
[349449222,1737189035734,-300.0,0.00019999,2]
[349449224,1737189035743,-83.08507803,0.0002,2]
[349449279,1737189038085,-20562.17606867,0.0002,2]
[349449281,1737189038095,-3605.5038539,0.0002,20]
[349449283,1737189038105,-5186.92006488,0.0002,2]
[349449285,1737189038114,-277.088598,0.00020241,2]
[349449287,1737189038123,-11403.6448961,0.00020469,2]
[349449289,1737189038133,-5263.2797138,0.00020545,11]
[349449290,1737189038142,-465.44868716,0.00020706,2]
[349449292,1737189038152,-838.77124991,0.00020706,2]
[349449294,1737189038161,-961.86373194,0.000209,2]
[349449296,1737189038170,-187.8,0.00020923,2]
[349449298,1737189038179,-19146.5198252,0.00020933,2]
[349449299,1737189038189,-462.9760828,0.00020954,2]
[349449301,1737189038198,-961.86373184,0.00021003,2]
[349449303,1737189038207,-961.86373184,0.00021107,2]
[349449305,1737189038216,-961.86373184,0.0002121,2]
[349449307,1737189038225,-1145.79132312,0.00021213,2]
[349449308,1737189038235,-259.55337478,0.00021213,2]
[349449310,1737189038244,-961.86373184,0.00021314,2]
[349449312,1737189038255,-961.86373184,0.00021417,2]
[349449314,1737189038265,-961.86373184,0.00021521,2]
[349449316,1737189038274,-961.86373184,0.00021624,3]
[349449318,1737189038283,-1797.82698097,0.00021701,2]
[349449319,1737189038292,-961.86373184,0.00021728,3]
[349449321,1737189038301,-465.02243436,0.00021741,2]
[349449323,1737189038310,-420.0,0.00021777,2]
[349449325,1737189038319,-961.86373184,0.00021831,3]
[349449327,1737189038329,-241.42205037,0.00021895,2]
[349449328,1737189038338,-4999.999999,0.0002191,2]
[349449330,1737189038348,-500.0,0.00021917,3]
[349449332,1737189038357,-500.0,0.00021917,3]
[349449334,1737189038366,-500.0,0.00021917,3]
[349449336,1737189038375,-500.0,0.00021917,3]
[349449337,1737189038384,-500.0,0.00021917,3]
[349449339,1737189038393,-500.0,0.00021917,3]
[349449341,1737189038403,-500.0,0.00021917,3]
[349449343,1737189038412,-500.0,0.00021917,3]
[349449345,1737189038421,-500.0,0.00021917,3]
[349449346,1737189038431,-2296.57,0.00021917,3]
[349449348,1737189038441,-2296.57,0.00021917,3]
[349449350,1737189038450,-500.0,0.00021917,3]
[349449352,1737189038460,-500.0,0.00021917,3]
[349449354,1737189038469,-500.0,0.00021917,3]
[349449356,1737189038479,-500.0,0.00021917,3]
[349449357,1737189038489,-500.0,0.00021917,3]
[349449359,1737189038500,-500.0,0.00021917,3]
[349449361,1737189038512,-500.0,0.00021917,3]
[349449363,1737189038522,-500.0,0.00021917,3]
[349449365,1737189038531,-500.0,0.00021917,3]
[349449367,1737189038540,-500.0,0.00021917,3]
[349449368,1737189038550,-500.0,0.00021917,3]
[349449370,1737189038559,-502.0334828,0.00021917,3]
[349449372,1737189038568,-2953.44,0.00021917,3]
[349449374,1737189038577,-500.0,0.00021917,3]
[349449376,1737189038588,-500.0,0.00021917,3]
[349449378,1737189038598,-500.0,0.00021917,3]
[349449380,1737189038607,-500.0,0.00021917,3]
[349449381,1737189038617,-500.0,0.00021917,3]
[349449383,1737189038626,-501.02978773,0.00021917,3]
[349449385,1737189038635,-500.0,0.00021917,3]
[349449387,1737189038645,-500.0,0.00021917,3]
[349449389,1737189038654,-500.0,0.00021917,3]
[349449390,1737189038663,-500.0,0.00021917,3]
[349449392,1737189038673,-500.0,0.00021917,3]
[349449394,1737189038683,-500.0,0.00021917,3]
[349449396,1737189038693,-962.46,0.00021917,3]
[349449398,1737189038702,-500.0,0.00021917,3]
[349449400,1737189038711,-500.0,0.00021917,3]
[349449401,1737189038720,-411.18554706,0.00021917,3]
[349449519,1737189040066,-88.81445294,0.00021917,3]
[349449521,1737189040076,-231.14154642,0.00021917,3]
[349449846,1737189043229,-268.85845358,0.00021917,3]
[349449848,1737189043239,-500.0,0.00021917,3]
[349449850,1737189043248,-1000.0,0.00021917,7]
[349449852,1737189043259,-500.0,0.00021917,3]
[349449854,1737189043268,-500.0,0.00021917,3]
[349449855,1737189043278,-500.0,0.00021917,3]
[349449858,1737189043287,-500.0,0.00021917,3]
[349449859,1737189043297,-500.0,0.00021917,3]
[349449862,1737189043307,-500.0,0.00021917,3]
[349449863,1737189043316,-500.0,0.00021917,3]
[349449865,1737189043325,-500.0,0.00021917,3]
[349449867,1737189043334,-500.0,0.00021917,3]
[349449869,1737189043343,-500.0,0.00021917,3]
[349449871,1737189043352,-500.0,0.00021917,3]
[349449873,1737189043362,-500.0,0.00021917,3]
[349449875,1737189043371,-500.0,0.00021917,3]
[349449877,1737189043381,-170.70777332,0.00021917,3]
[349450142,1737189045941,-329.29222668,0.00021917,3]
[349450144,1737189045951,-500.0,0.00021917,3]
[349450145,1737189045960,-221.67935332,0.00021917,3]
[349453330,1737189227163,199.59,0.0001675,2]
[349453332,1737189464952,1109.94,0.00025,120]
[349453333,1737189560853,3130.0,0.00025,120]
[349453335,1737189607009,158.690632,0.00013973,2]
[349453390,1737190235674,-500.0,0.00019999,7]
[349453391,1737190235684,-349.6239317,0.00020684,9]
[349453392,1737190235694,-277.0885997,0.00020825,2]
[349453393,1737190235703,-6797.1154639,0.00021505,2]
[349453394,1737190235713,-193.13764028,0.00021817,2]
[349453395,1737190235722,-193.13764028,0.00021838,2]
[349453396,1737190235732,-193.13764028,0.00021859,2]
[349453397,1737190235743,-193.13764028,0.00021879,2]
[349453398,1737190235753,-157.54,0.00021881,2]
[349453399,1737190235764,-677.60851002,0.00021881,2]
[349453400,1737190235775,-300.0,0.00021899,2]
[349453401,1737190235786,-193.13764028,0.000219,2]
[349453402,1737190235795,-500.0,0.00021916,2]
[349453403,1737190235804,-500.0,0.00021916,2]
[349453404,1737190235814,-500.0,0.00021916,2]
[349453405,1737190235823,-500.0,0.00021916,2]
[349453406,1737190235833,-500.0,0.00021916,2]
[349453407,1737190235842,-500.0,0.00021916,2]
[349453409,1737190235852,-500.0,0.00021916,2]
[349453410,1737190235863,-500.0,0.00021916,2]
[349453411,1737190235873,-500.0,0.00021916,2]
[349453412,1737190235884,-500.0,0.00021916,2]
[349453413,1737190235893,-500.0,0.00021916,2]
[349453414,1737190235903,-640.47733778,0.00021916,2]
[349453415,1737190235912,-538.79434884,0.00021916,2]
[349453416,1737190235922,-500.0,0.00021916,2]
[349453417,1737190235932,-500.0,0.00021916,2]
[349453418,1737190235941,-500.0,0.00021916,2]
[349453419,1737190235952,-500.0,0.00021916,2]
[349453420,1737190235965,-500.0,0.00021916,2]
[349453421,1737190235976,-500.0,0.00021916,2]
[349453422,1737190235986,-500.0,0.00021916,2]
[349453423,1737190235996,-500.0,0.00021916,2]
[349453424,1737190236005,-500.0,0.00021916,2]
[349453425,1737190236015,-500.0,0.00021916,2]
[349453426,1737190236024,-500.0,0.00021916,2]
[349453427,1737190236034,-500.0,0.00021916,2]
[349453428,1737190236043,-500.0,0.00021916,2]
[349453429,1737190236054,-500.0,0.00021916,2]
[349453430,1737190236063,-500.0,0.00021916,2]
[349453431,1737190236073,-500.0,0.00021916,2]
[349453432,1737190236082,-500.0,0.00021916,2]
[349453433,1737190236091,-500.0,0.00021916,2]
[349453434,1737190236101,-500.0,0.00021916,2]
[349453435,1737190236110,-500.0,0.00021916,2]
[349453436,1737190236120,-249.11967021,0.00021916,2]
[349453437,1737190236129,-500.0,0.00021916,2]
[349453438,1737190236138,-500.0,0.00021916,2]
[349453439,1737190236148,-474.30742626,0.00021916,2]
[349453440,1737190236158,-500.0,0.00021916,2]
[349453441,1737190236173,-500.0,0.00021916,2]
[349453442,1737190236186,-500.0,0.00021916,2]
[349453443,1737190236195,-500.0,0.00021916,2]
[349453444,1737190236207,-500.0,0.00021916,2]
[349453445,1737190236228,-583.92850407,0.00021916,2]
[349453446,1737190236238,-500.0,0.00021916,2]
[349453447,1737190236248,-500.0,0.00021916,2]
[349453448,1737190236257,-500.0,0.00021916,2]
[349453449,1737190236266,-500.0,0.00021916,2]
[349453450,1737190236275,-500.0,0.00021916,2]
[349453451,1737190236285,-500.0,0.00021916,2]
[349453452,1737190236295,-500.0,0.00021916,2]
[349453453,1737190236304,-326.59682191,0.00021916,2]
[349453454,1737190236314,-500.0,0.00021916,2]
[349453455,1737190236324,-500.0,0.00021916,2]
[349453456,1737190236334,-500.0,0.00021916,2]
[349453457,1737190236344,-500.0,0.00021916,2]
[349453458,1737190236354,-500.0,0.00021916,2]
[349453459,1737190236363,-500.0,0.00021916,2]
[349453460,1737190236373,-500.0,0.00021916,2]
[349453461,1737190236383,-500.0,0.00021916,2]
[349453462,1737190236392,-500.0,0.00021916,2]
[349453463,1737190236401,-500.0,0.00021916,2]
[349453464,1737190236410,-500.0,0.00021916,2]
[349453465,1737190236419,-442.11118421,0.00021916,2]
[349453466,1737190236437,-57.88881579,0.00021916,2]
[349453467,1737190236446,-500.0,0.00021916,2]
[349453468,1737190236455,-500.0,0.00021916,2]
[349453469,1737190236465,-500.0,0.00021916,2]
[349453470,1737190236475,-500.0,0.00021916,2]
[349453471,1737190236484,-500.0,0.00021916,2]
[349453472,1737190236494,-500.0,0.00021916,2]
[349453473,1737190236503,-500.0,0.00021916,2]
[349453474,1737190236512,-500.0,0.00021916,2]
[349453475,1737190236522,-500.0,0.00021916,2]
[349453476,1737190236533,-500.0,0.00021916,2]
[349453477,1737190236542,-500.0,0.00021916,2]
[349453478,1737190236552,-500.0,0.00021916,2]
[349453479,1737190236562,-500.0,0.00021916,2]
[349453480,1737190236572,-500.0,0.00021916,2]
[349453481,1737190236582,-500.0,0.00021916,2]
[349453482,1737190236592,-500.0,0.00021916,2]
[349453483,1737190236602,-500.0,0.00021916,2]
[349453484,1737190236612,-500.0,0.00021916,2]
[349453485,1737190236622,-500.0,0.00021916,2]
[349453486,1737190236632,-500.0,0.00021916,2]
[349453487,1737190236642,-500.0,0.00021916,2]
[349453488,1737190236652,-22.65083053,0.00021916,2]
[349454334,1737190246072,-1201.08779952,0.000219,3]
[349454336,1737190246083,-477.34916947,0.00021916,2]
[349454338,1737190246093,-500.0,0.00021916,2]
[349454340,1737190246103,-500.0,0.00021916,2]
[349454342,1737190246112,-500.0,0.00021916,2]
[349454344,1737190246122,-419.46484464,0.00021916,2]
[349454346,1737190246132,-500.0,0.00021916,2]
[349454349,1737190246143,-500.0,0.00021916,2]
[349454351,1737190246152,-500.0,0.00021916,2]
[349454353,1737190246161,-500.0,0.00021916,2]
[349454355,1737190246171,-500.0,0.00021916,2]
[349454357,1737190246181,-478.08960505,0.00021916,2]
[349458577,1737190559193,166.060391,0.00013973,2]
[349458630,1737191432398,-162.46242002,0.000189,2]
[349458631,1737191432409,-2570.0,0.00020609,2]
[349458632,1737191432419,-166.130316,0.00020642,2]
[349458633,1737191432431,-1000.0,0.00021,21]
[349458634,1737191432442,-1016.0,0.00021,4]
[349458635,1737191432453,-343.83535396,0.00021817,2]
[349458636,1737191432462,-1359.41330997,0.000219,3]
[349458637,1737191432473,-21.91039495,0.00021916,2]
[349458638,1737191432482,-500.0,0.00021916,2]
[349458639,1737191432492,-500.0,0.00021916,2]
[349458640,1737191432501,-500.0,0.00021916,2]
[349458641,1737191432510,-500.0,0.00021916,2]
[349458642,1737191432520,-500.0,0.00021916,2]
[349458643,1737191432530,-500.0,0.00021916,2]
[349458644,1737191432540,-500.0,0.00021916,2]
[349458645,1737191432549,-500.0,0.00021916,2]
[349458646,1737191432559,-500.0,0.00021916,2]
[349458647,1737191432577,-500.0,0.00021916,2]
[349458648,1737191432589,-500.0,0.00021916,2]
[349458649,1737191432600,-500.0,0.00021916,2]
[349458650,1737191432610,-500.0,0.00021916,2]
[349458651,1737191432619,-500.0,0.00021916,2]
[349458653,1737191432629,-500.0,0.00021916,2]
[349458655,1737191432639,-500.0,0.00021916,2]
[349458657,1737191432648,-500.0,0.00021916,2]
[349458659,1737191432658,-500.0,0.00021916,2]
[349458661,1737191432667,-500.0,0.00021916,2]
[349458663,1737191432677,-500.0,0.00021916,2]
[349458666,1737191432687,-500.0,0.00021916,2]
[349458668,1737191432696,-500.0,0.00021916,2]
[349458670,1737191432705,-500.0,0.00021916,2]
[349458672,1737191432714,-500.0,0.00021916,2]
[349458674,1737191432724,-500.0,0.00021916,2]
[349458676,1737191432733,-500.0,0.00021916,2]
[349458678,1737191432742,-500.0,0.00021916,2]
[349458680,1737191432752,-500.0,0.00021916,2]
[349458682,1737191432761,-500.0,0.00021916,2]
[349458684,1737191432771,-500.0,0.00021916,2]
[349458686,1737191432780,-500.0,0.00021916,2]
[349458688,1737191432790,-500.0,0.00021916,2]
[349458690,1737191432800,-208.39285041,0.00021916,2]
[349458692,1737191432809,-500.0,0.00021916,2]
[349458694,1737191432819,-500.0,0.00021916,2]
[349458696,1737191432828,-249.99999999,0.00021916,2]
[349458698,1737191432838,-500.0,0.00021916,2]
[349458700,1737191432848,-500.0,0.00021916,2]
[349458702,1737191432858,-500.0,0.00021916,2]
[349458704,1737191432867,-500.0,0.00021916,2]
[349458707,1737191432877,-3962.4313547,0.00021916,5]
[349458712,1737191433096,-1470.65128615,0.00021916,5]
[349458713,1737191433106,-1548.04946183,0.00021917,2]
[349458714,1737191433116,-13444.19160002,0.00021917,5]
[349458724,1737191438290,-28713.37470785,0.00021917,5]
[349458725,1737191438301,-501.40193362,0.00021917,3]
[349458726,1737191438310,-501.17727655,0.00021917,3]
[349458727,1737191438321,-581.77940846,0.00021917,3]
[349458728,1737191438331,-507.70990707,0.00021917,3]
[349458729,1737191438342,-560.64139077,0.00021917,3]
[349458730,1737191438351,-481.60914994,0.00021917,3]
[349458731,1737191438363,-13.64862403,0.00021917,3]
[349458732,1737191438373,-500.0,0.00021917,3]
[349458733,1737191438383,-502.97382579,0.00021917,3]
[349458734,1737191438397,-500.0,0.00021917,3]
[349458735,1737191438407,-500.0,0.00021917,3]
[349458736,1737191438416,-513.82521103,0.00021917,3]
[349458737,1737191438425,-501.7162061,0.00021917,3]
[349458738,1737191438435,-536.37488199,0.00021917,3]
[349458739,1737191438446,-500.0,0.00021917,3]
[349458740,1737191438457,-480.32436663,0.00021917,3]
[349458741,1737191438467,-151.20617073,0.00021917,3]
[349458742,1737191438478,-500.0,0.00021917,3]
[349458743,1737191438489,-506.65245608,0.00021917,3]
[349458744,1737191438499,-500.0,0.00021917,3]
[349458745,1737191438509,-502.35972386,0.00021917,3]
[349458746,1737191438519,-500.0,0.00021917,3]
[349458747,1737191438528,-500.0,0.00021917,3]
[349458748,1737191438537,-186.36228371,0.00021917,3]
[349458749,1737191438548,-500.0,0.00021917,3]
[349458750,1737191438557,-501.21473839,0.00021917,3]
[349458751,1737191438567,-500.0,0.00021917,3]
[349458752,1737191438578,-500.0,0.00021917,3]
[349458753,1737191438587,-500.0,0.00021917,3]
[349458754,1737191438597,-509.30789237,0.00021917,3]
[349458755,1737191438607,-500.0,0.00021917,3]
[349458756,1737191438616,-500.0,0.00021917,3]
[349458757,1737191438626,-459.604,0.00021917,2]
[349458758,1737191438636,-503.35757614,0.00021917,3]
[349458759,1737191438646,-500.0,0.00021917,3]
[349458760,1737191438656,-500.0,0.00021917,3]
[349458761,1737191438666,-500.0,0.00021917,3]
[349458762,1737191438676,-500.0,0.00021917,3]
[349458763,1737191438686,-500.0,0.00021917,3]
[349458764,1737191438696,-500.0,0.00021917,3]
[349458765,1737191438705,-500.0,0.00021917,3]
[349458766,1737191438715,-500.0,0.00021917,3]
[349458767,1737191438725,-367.54671706,0.00021917,3]
[349458768,1737191438734,-500.0,0.00021917,3]
[349458769,1737191438743,-500.0,0.00021917,3]
[349458770,1737191438752,-500.0,0.00021917,3]
[349458771,1737191438763,-501.08781509,0.00021917,3]
[349458772,1737191438772,-372.68964359,0.00021917,3]
[349458773,1737191438786,-127.31035641,0.00021917,3]
[349458774,1737191438795,-500.0,0.00021917,3]
[349458775,1737191438805,-500.0,0.00021917,2]
[349458776,1737191438814,-500.0,0.00021917,3]
[349458777,1737191438823,-500.0,0.00021917,3]
[349458778,1737191438832,-590.1782655,0.00021917,3]
[349458779,1737191438842,-500.0,0.00021917,3]
[349458780,1737191438851,-500.0,0.00021917,3]
[349458781,1737191438860,-500.0,0.00021917,3]
[349458782,1737191438869,-500.0,0.00021917,3]
[349458783,1737191438879,-500.0,0.00021917,3]
[349458784,1737191438888,-321.16675695,0.00021917,3]
[349458785,1737191438897,-500.0,0.00021917,3]
[349458786,1737191438907,-533.51168514,0.00021917,3]
[349458787,1737191438916,-500.0,0.00021917,3]
[349458788,1737191438926,-500.0,0.00021917,3]
[349458789,1737191438935,-500.0,0.00021917,3]
[349458790,1737191438944,-500.0,0.00021917,3]
[349458791,1737191438954,-500.0,0.00021917,3]
[349458792,1737191438963,-500.0,0.00021917,3]
[349458793,1737191438972,-500.0,0.00021917,3]
[349458794,1737191438983,-500.0,0.00021917,3]
[349458795,1737191438992,-500.0,0.00021917,3]
[349458796,1737191439001,-500.0,0.00021917,3]
[349458797,1737191439010,-500.0,0.00021917,3]
[349458798,1737191439019,-506.50635921,0.00021917,3]
[349458799,1737191439029,-100.32657679,0.00021917,3]
[349458836,1737191479381,1650.0,0.00025,120]
[349458837,1737191551316,500.0,0.00025,120]
[349458846,1737192173516,161.981313,0.00013973,2]
[349458865,1737192500082,3443.79927326,0.000125,2]
[349458868,1737192511535,270.15569543,0.00014114,2]
[349458869,1737192513943,276.03336314,0.0001,2]
[349458870,1737192522932,843.13191312,0.00015,2]
[349458871,1737192523643,566.62095059,0.000149,2]
[349458872,1737192524052,1000.0,0.0001,2]
[349458926,1737192632499,-211.05195539,0.00018621,2]
[349458928,1737192632509,-300.0,0.00018999,2]
[349458930,1737192632519,-1750.38834058,0.00019,3]
[349458931,1737192632622,-10343.0,0.00019,3]
[349458932,1737192632635,-7916.65538542,0.00019,3]
[349458933,1737192632645,-250.0,0.00019867,2]
[349458934,1737192632655,-151.87413112,0.0002,2]
[349458935,1737192632666,-160.0,0.0002,3]
[349458936,1737192632675,-3243.0402439,0.00020157,2]
[349458937,1737192632685,-5372.8071553,0.00020407,2]
[349458938,1737192632695,-226.6287831,0.00020471,2]
[349458939,1737192632854,-1383.5612328,0.00020528,2]
[349458940,1737192632864,-161.271296,0.00020564,2]
[349458941,1737192632874,-420.0,0.00020709,2]
[349458942,1737192632884,-449.776,0.0002082,2]
[349458943,1737192632894,-154.0592362,0.00020878,2]
[349458944,1737192632903,-153.0,0.00020878,2]
[349458945,1737192632913,-215.0923738,0.00020878,2]
[349458946,1737192632923,-153.0,0.00020878,2]
[349458947,1737192632933,-153.0,0.00020878,2]